fUST/lending_fUST_20240524
["ID","MTS","AMOUNT","RATE_DAILY","PERIOD"]
[327827113,1716521443085,-423.26575678,0.00024656,2]
[327827114,1716521443097,-15.91603808,0.00024656,2]
[327827115,1716521443107,-431.19036169,0.00024656,2]
[327827116,1716521443116,-49.25887338,0.00024656,2]
[327827138,1716521502103,181.50612434,0.00020913,2]
[327827139,1716521520058,179.973,0.00020913,2]
[327827140,1716521520516,5775.58056418,0.00020913,2]
[327827141,1716521538039,154.86062544,0.00020913,2]
[327827149,1716522228817,154.87609912,9.999e-05,2]
[327827150,1716522355139,-154.87609912,0.00020913,2]
[327827151,1716522355159,-161.41573518,0.00022455,2]
[327827152,1716522355179,-98.78728386,0.00022555,2]
[327827154,1716522439098,-154.87609912,0.00020913,2]
[327827155,1716522439119,-51.21271614,0.00022555,2]
[327827156,1716522439139,-181.63149622,0.00022717,2]
[327827165,1716522545127,-200.3880772,0.00020913,2]
[327827167,1716522619923,150.0,0.00020617,2]
[327827225,1716522638477,-250.0,0.00022782,2]
[327827226,1716522638487,-235.5304996,0.00022823,2]
[327827227,1716522638497,-5149.6508606,0.00022914,2]
[327827228,1716522638507,-163.492418,0.00023033,2]
[327827229,1716522638516,-153.0,0.00023309,2]
[327827230,1716522638526,-153.0,0.00023778,2]
[327827231,1716522638535,-153.0,0.00023878,2]
[327827232,1716522638545,-154.575736,0.00024187,2]
[327827233,1716522638554,-153.0,0.00024187,2]
[327827234,1716522638563,-153.0,0.00024187,2]
[327827235,1716522638574,-314.347932,0.00024384,2]
[327827236,1716522638584,-556.76966891,0.00024557,2]
[327827237,1716522638594,-1246.36263884,0.00024557,3]
[327827238,1716522638604,-151.38566364,0.00024557,2]
[327827239,1716522638614,-5383.08133385,0.00024656,11]
[327827240,1716522638624,-450.74112662,0.00024656,2]
[327827241,1716522638633,-446.87245583,0.00024656,2]
[327827242,1716522638643,-500.0,0.00024656,2]
[327827243,1716522638652,-371.36102001,0.00024656,2]
[327827244,1716522638662,-500.0,0.00024656,2]
[327827245,1716522638671,-500.0,0.00024656,2]
[327827246,1716522638680,-422.59349653,0.00024656,2]
[327827247,1716522638690,-500.0,0.00024656,2]
[327827248,1716522638700,-500.0,0.00024656,2]
[327827249,1716522638710,-500.0,0.00024656,2]
[327827250,1716522638719,-500.0,0.00024656,2]
[327827251,1716522638729,-405.54997595,0.00024656,2]
[327827252,1716522638738,-500.0,0.00024656,2]
[327827253,1716522638747,-500.0,0.00024656,2]
[327827254,1716522638756,-500.0,0.00024656,2]
[327827255,1716522638766,-500.0,0.00024656,2]
[327827256,1716522638776,-273.26509732,0.00024656,2]
[327827257,1716522638786,-500.0,0.00024656,2]
[327827258,1716522638795,-500.0,0.00024656,2]
[327827259,1716522638804,-500.0,0.00024656,2]
[327827260,1716522638813,-500.0,0.00024656,2]
[327827261,1716522638822,-499.99999999,0.00024656,2]
[327827262,1716522638831,-500.85510885,0.00024656,2]
[327827263,1716522638840,-500.0,0.00024656,2]
[327827264,1716522638849,-3000.0,0.00024656,2]
[327827265,1716522638858,-3022.57751504,0.00024656,2]
[327827266,1716522638868,-500.0,0.00024656,2]
[327827267,1716522638878,-500.0,0.00024656,2]
[327827268,1716522638887,-431.27716891,0.00024656,2]
[327827269,1716522638896,-500.24208294,0.00024656,2]
[327827270,1716522638905,-500.0,0.00024656,2]
[327827271,1716522638915,-500.0,0.00024656,2]
[327827272,1716522638924,-500.0,0.00024656,2]
[327827273,1716522638933,-555.06,0.00024656,4]
[327827274,1716522638942,-555.06,0.00024656,4]
[327827275,1716522638952,-555.06,0.00024656,4]
[327827276,1716522638961,-555.06,0.00024656,4]
[327827277,1716522638970,-555.06,0.00024656,4]
[327827278,1716522638980,-555.06,0.00024656,4]
[327827279,1716522638989,-555.06,0.00024656,4]
[327827280,1716522638998,-555.06,0.00024656,4]
[327827281,1716522639007,-555.06,0.00024656,4]
[327827282,1716522639016,-555.06,0.00024656,4]
[327827283,1716522639025,-555.06,0.00024656,4]
[327827284,1716522639034,-288.0,0.00024657,2]
[327827285,1716522639043,-150.0,0.00024657,2]
[327827286,1716522639052,-150.0,0.00024657,2]
[327827287,1716522639061,-250.0,0.00024657,2]
[327827288,1716522639070,-3511.8082006,0.00024657,11]
[327827289,1716522639086,-4109.16328342,0.00024657,11]
[327827308,1716522641597,-304.71368244,0.00024657,11]
[327827321,1716522643546,-1225.59750485,0.00024657,11]
[327827322,1716522643594,-23709.81510287,0.00024657,11]
[327827324,1716522643604,-500.0,0.00024657,2]
[327827326,1716522643615,-500.0,0.00024657,2]
[327827328,1716522643624,-154.15308,0.00024657,2]
[327827330,1716522643634,-500.0,0.00024657,2]
[327827332,1716522643644,-151.0,0.00024657,2]
[327827333,1716522643652,-151.0,0.00024657,2]
[327827335,1716522643662,-202.868694,0.00024657,2]
[327827337,1716522643673,-500.0,0.00024657,2]
[327827339,1716522643687,-500.0,0.00024657,2]
[327827341,1716522643708,-500.0,0.00024657,2]
[327827343,1716522643747,-500.0,0.00024657,2]
[327827345,1716522643825,-519.48582686,0.00024657,2]
[327827347,1716522643959,-500.0,0.00024657,2]
[327827349,1716522644051,-500.0,0.00024657,2]
[327827351,1716522644170,-503.88889599,0.00024657,2]
[327827353,1716522644241,-500.0,0.00024657,2]
[327827354,1716522644305,-500.0,0.00024657,2]
[327827356,1716522644321,-502.45712433,0.00024657,2]
[327827358,1716522644332,-500.0,0.00024657,2]
[327827360,1716522644341,-401.21457724,0.00024657,2]
[327827362,1716522644350,-502.55768687,0.00024657,2]
[327827364,1716522644359,-502.49941726,0.00024657,2]
[327827366,1716522644369,-500.0,0.00024657,2]
[327827368,1716522644379,-500.0,0.00024657,2]
[327827370,1716522644388,-500.0,0.00024657,2]
[327827372,1716522644397,-504.42,0.00024657,2]
[327827374,1716522644405,-500.0,0.00024657,2]
[327827376,1716522644415,-500.0,0.00024657,2]
[327827378,1716522644424,-500.0,0.00024657,2]
[327827380,1716522644432,-500.0,0.00024657,2]
[327827400,1716522644600,-500.0,0.00024657,2]
[327827403,1716522644610,-796.69,0.00024657,2]
[327827405,1716522644619,-500.0,0.00024657,2]
[327827407,1716522644629,-500.0,0.00024657,2]
[327827409,1716522644638,-500.0,0.00024657,2]
[327827411,1716522644648,-500.0,0.00024657,2]
[327827413,1716522644657,-1188.59,0.00024657,2]
[327827415,1716522644667,-500.0,0.00024657,2]
[327827417,1716522644676,-1270.16,0.00024657,2]
[327827419,1716522644686,-500.0,0.00024657,2]
[327827421,1716522644695,-500.0,0.00024657,2]
[327827423,1716522644705,-500.0,0.00024657,2]
[327827425,1716522644715,-500.0,0.00024657,2]
[327827427,1716522644725,-500.0,0.00024657,2]
[327827429,1716522644734,-508.13,0.00024657,2]
[327827431,1716522644744,-500.0,0.00024657,2]
[327827433,1716522644753,-895.29,0.00024657,2]
[327827435,1716522644764,-500.0,0.00024657,2]
[327827437,1716522644775,-1079.28,0.00024657,2]
[327827439,1716522644785,-633.61,0.00024657,2]
[327827441,1716522644794,-500.0,0.00024657,2]
[327827443,1716522644803,-500.0,0.00024657,2]
[327827445,1716522644812,-500.0,0.00024657,2]
[327827447,1716522644822,-500.0,0.00024657,2]
[327827449,1716522644832,-1522.7,0.00024657,2]
[327827451,1716522644842,-777.78,0.00024657,2]
[327827453,1716522644852,-825.5,0.00024657,2]
[327827455,1716522644862,-554.26,0.00024657,2]
[327827457,1716522644872,-767.13,0.00024657,2]
[327827459,1716522644882,-500.0,0.00024657,2]
[327827461,1716522644891,-500.0,0.00024657,2]
[327827463,1716522644901,-500.0,0.00024657,2]
[327827465,1716522644912,-1931.06,0.00024657,2]
[327827467,1716522644921,-660.19,0.00024657,2]
[327827469,1716522644931,-158.89909,0.00024657,2]
[327827471,1716522644941,-417.01722057,0.00024657,2]
[327827473,1716522644951,-153.044941,0.00024657,2]
[327827475,1716522644961,-500.0,0.00024657,2]
[327827477,1716522644972,-249.05834301,0.00024657,2]
[327827484,1716522645123,-46.11990202,0.00024657,2]
[327827485,1716522645136,-204.82175497,0.00024657,2]
[327827486,1716522645146,-469.28626158,0.00024657,2]
[327827491,1716522647358,-171.407,0.00024657,2]
[327827492,1716522647367,-62.58373842,0.00024657,2]
[327827493,1716522647376,-967.31,0.00024657,2]
[327827494,1716522647386,-500.0,0.00024657,2]
[327827495,1716522647395,-325.12,0.00024657,2]
[327827496,1716522647404,-151.0,0.00024657,2]
[327827497,1716522647424,-151.0,0.00024657,2]
[327827498,1716522647435,-151.0,0.00024657,2]
[327827499,1716522647445,-151.0,0.00024657,2]
[327827500,1716522647456,-151.0,0.00024657,2]
[327827501,1716522647466,-151.0,0.00024657,2]
[327827502,1716522647476,-500.0,0.00024657,2]
[327827503,1716522647488,-151.0,0.00024657,2]
[327827504,1716522647499,-151.0,0.00024657,2]
[327827505,1716522647509,-151.0,0.00024657,2]
[327827506,1716522647519,-251.557383,0.00024657,2]
[327827507,1716522647530,-500.0,0.00024657,2]
[327827508,1716522647539,-500.0,0.00024657,2]
[327827509,1716522647549,-500.0,0.00024657,2]
[327827510,1716522647559,-1180.04,0.00024657,2]
[327827511,1716522647569,-2605.66,0.00024657,2]
[327827512,1716522647582,-500.0,0.00024657,2]
[327827513,1716522647592,-500.0,0.00024657,2]
[327827514,1716522647601,-1629.47742886,0.00024657,2]
[327827516,1716523034229,945.3,0.00028,120]
[327827518,1716523630217,-298.630535,0.00024384,2]
[327827519,1716523630238,-93.48693565,0.000246,2]
[327827570,1716523832770,-507.06226435,0.000246,2]
[327827572,1716523832779,-500.0,0.00024656,4]
[327827574,1716523832789,-500.0,0.00024656,4]
[327827576,1716523832798,-500.0,0.00024656,4]
[327827578,1716523832807,-500.0,0.00024656,4]
[327827579,1716523832816,-500.0,0.00024656,4]
[327827581,1716523832826,-500.0,0.00024656,4]
[327827584,1716523832835,-500.0,0.00024656,4]
[327827586,1716523832844,-500.0,0.00024656,4]
[327827587,1716523832853,-500.0,0.00024656,4]
[327827590,1716523832863,-496.0,0.00024657,2]
[327827592,1716523832873,-16430.54888709,0.00024657,11]
[327827594,1716523832882,-2691.54066693,0.00024657,11]
[327827596,1716523832892,-500.0,0.00024657,2]
[327827598,1716523832903,-500.0,0.00024657,2]
[327827600,1716523832912,-500.0,0.00024657,2]
[327827602,1716523832922,-500.0,0.00024657,2]
[327827604,1716523832932,-500.0,0.00024657,2]
[327827606,1716523832941,-500.0,0.00024657,2]
[327827607,1716523832950,-500.0,0.00024657,2]
[327827610,1716523832960,-500.0,0.00024657,2]
[327827611,1716523832970,-500.0,0.00024657,2]
[327827613,1716523832979,-745.38,0.00024657,2]
[327827616,1716523832988,-531.16,0.00024657,2]
[327827618,1716523832998,-500.0,0.00024657,2]
[327827619,1716523833007,-500.0,0.00024657,2]
[327827622,1716523833017,-311.57,0.00024657,2]
[327827623,1716523833027,-500.0,0.00024657,2]
[327827625,1716523833036,-500.0,0.00024657,2]
[327827628,1716523833046,-500.0,0.00024657,2]
[327827630,1716523833055,-484.61722138,0.00024657,2]
[327827632,1716523833064,-298.28407666,0.00024657,2]
[327827893,1716523838685,-201.71592334,0.00024657,2]
[327827894,1716523838695,-500.0,0.00024657,2]
[327827895,1716523838705,-500.0,0.00024657,2]
[327827896,1716523838714,-500.0,0.00024657,2]
[327827897,1716523838723,-921.31,0.00024657,2]
[327827898,1716523838732,-500.0,0.00024657,2]
[327827899,1716523838742,-1795.29,0.00024657,2]
[327827900,1716523838751,-954.37,0.00024657,2]
[327827901,1716523838762,-560.16,0.00024657,2]
[327827902,1716523838772,-951.75,0.00024657,2]
[327827903,1716523838781,-546.84,0.00024657,2]
[327827904,1716523838790,-763.49,0.00024657,2]
[327827905,1716523838799,-500.0,0.00024657,2]
[327827906,1716523838808,-500.0,0.00024657,2]
[327827907,1716523838817,-424.51886074,0.00024657,2]
[327827908,1716523838827,-500.0,0.00024657,2]
[327827909,1716523838836,-500.0,0.00024657,2]
[327827910,1716523838846,-289.45521599,0.00024657,2]
[327828014,1716523843872,-210.54478401,0.00024657,2]
[327828016,1716523843882,-549.76621595,0.00024657,2]
[327828058,1716523863541,4455.29327188,0.00020913,2]
[327828059,1716523871371,1097.73752106,0.00020913,2]
[327828138,1716524839181,-163.492418,0.00023287,2]
[327828139,1716524839201,-283.699008,0.00024384,2]
[327828140,1716524839221,-398.59640995,0.0002441,2]
[327828141,1716524839240,-545.70636734,0.0002443,2]
[327828142,1716524839260,-1634.89823927,0.00024534,2]
[327828143,1716524845098,-1782.01420329,0.00024534,2]
[327828144,1716524845117,-219.07216347,0.000246,2]
[327828147,1716524946087,-708.7321991,0.00022,7]
[327828212,1716525037939,-1157.22399154,0.00023376,2]
[327828213,1716525037961,-805.05646806,0.00023376,2]
[327828214,1716525037972,-269.514057,0.00024384,2]
[327828215,1716525037981,-76.92783653,0.000246,2]
[327828216,1716525037991,-500.0,0.00024656,2]
[327828217,1716525038000,-444.44872753,0.00024656,2]
[327828758,1716525046005,-55.55127247,0.00024656,2]
[327828760,1716525046015,-326.17533098,0.00024656,2]
[327828762,1716525046024,-500.0,0.00024656,2]
[327828764,1716525046034,-169.82014228,0.00024656,2]
[327828766,1716525046043,-550.0,0.00024656,2]
[327828767,1716525046053,-500.0,0.00024656,2]
[327828769,1716525046062,-500.0,0.00024656,2]
[327828771,1716525046071,-503.07742963,0.00024656,2]
[327828772,1716525046081,-500.0,0.00024656,2]
[327828774,1716525046090,-287.97685907,0.00024656,2]
[327829762,1716525058256,23550.25087696,0.00020913,2]
[327829820,1716526000192,206.38914512,0.0002016,2]
[327829821,1716526025165,-9745.26062544,0.00020284,2]
[327829822,1716526038102,-1314.29579167,0.00020284,2]
[327829823,1716526053963,281.75410999,9.999e-05,2]
[327829824,1716526054082,-467.01865422,0.00020284,2]
[327829825,1716526146099,-3473.42492867,0.00020284,2]
[327829826,1716526146119,-150.44470461,0.00020812,2]
[327829827,1716526146142,-324.64116822,0.0002091,2]
[327829828,1716526146164,-299.73119091,0.0002091,2]
[327829829,1716526146184,-470.80231705,0.0002091,2]
[327829830,1716526146203,-557.327794,0.0002091,2]
[327829831,1716526146225,-154.8915759,0.0002091,2]
[327829832,1716526146244,-1901.40883463,0.00020911,2]
[327829833,1716526146264,-398.03194284,0.00020912,2]
[327829834,1716526146283,-264.40789058,0.00020912,2]
[327829835,1716526146303,-1502.01986812,0.00020912,2]
[327829836,1716526146326,-284.48090927,0.00020912,2]
[327829837,1716526146349,-2114.86075036,0.00020912,2]
[327829838,1716526146370,-189.7425429,0.00020912,2]
[327829839,1716526146390,-10849.01945741,0.00020912,2]
[327829840,1716526146410,-857.39674547,0.00020912,2]
[327829841,1716526146432,-155.38233873,0.00020912,2]
[327829842,1716526146452,-309.76587204,0.00020912,2]
[327829843,1716526146471,-842.30792511,0.00020912,2]
[327829844,1716526146491,-8675.83890665,0.00020912,2]
[327829845,1716526146511,-2033.07644531,0.00020912,2]
[327829846,1716526146531,-155.09931136,0.00020912,2]
[327829847,1716526146551,-400.0,0.00020912,2]
[327829848,1716526146571,-288.47812701,0.00020912,2]
[327829849,1716526146591,-1154.88110186,0.00020912,2]
[327829850,1716526146611,-552.52018665,0.00020912,2]
[327829851,1716526146632,-5306.64198775,0.00020913,11]
[327829852,1716526146652,-174.67407508,0.00020913,2]
[327829853,1716526146674,-4303.62085346,0.00020913,10]
[327829854,1716526146696,-3992.81638578,0.00021,2]
[327829855,1716526146718,-11407.93918444,0.00022,2]
[327829856,1716526156179,-1398.08035328,0.00022,2]
[327829857,1716526156200,-294.03302147,0.00022,2]
[327829858,1716526156224,-992.427765,0.00022,2]
[327829859,1716526156245,-992.427765,0.00022,2]
[327829860,1716526156264,-173.59146,0.00022,2]
[327829861,1716526156287,-151.0,0.00022,2]
[327829862,1716526156308,-151.0,0.00022,2]
[327829863,1716526156329,-151.0,0.00022,2]
[327829864,1716526156351,-1907.722848,0.00022,2]
[327829865,1716526156373,-1907.722848,0.00022,2]
[327829866,1716526157125,-329.27811185,0.000223,6]
[327829867,1716526158834,151.94609,0.00022,2]
[327829868,1716526162955,151.0,0.00022,2]
[327829869,1716526163258,200.35712674,0.00020913,2]
[327829870,1716526173556,2938.597128,0.00022,2]
[327829871,1716526177657,2938.597128,0.00022,2]
[327829872,1716526179070,185.894525,0.00022,2]
[327829873,1716526183653,185.894525,0.00022,2]
[327829874,1716526192188,151.0,0.00022,2]
[327829875,1716526195713,151.0,0.00022,2]
[327829876,1716526218803,151.0,0.00022,2]
[327829877,1716526222344,151.0,0.00022,2]
[327829984,1716526238616,-364.03155215,0.00023,2]
[327829985,1716526238626,-187.04436987,0.00024,2]
[327829986,1716526238636,-150.44470461,0.00024036,2]
[327829987,1716526238646,-1026.03788142,0.00024136,2]
[327829988,1716526238655,-151.0,0.00024304,5]
[327829989,1716526238665,-151.0,0.00024304,5]
[327829990,1716526238674,-160.467927,0.00024384,2]
[327829992,1716526238684,-287.216521,0.00024384,2]
[327829994,1716526238694,-374.93834548,0.0002441,2]
[327829995,1716526238703,-151.0,0.00024461,5]
[327829996,1716526238713,-628.93364344,0.00024557,3]
[327829997,1716526238722,-511.52971959,0.00024557,2]
[327829998,1716526238732,-708.88912122,0.00024557,2]
[327829999,1716526238742,-151.0,0.00024617,5]
[327830000,1716526238752,-684.90731694,0.00024655,2]
[327830001,1716526238761,-151.0,0.00024655,2]
[327830002,1716526238770,-151.0,0.00024655,2]
[327830003,1716526238780,-2938.597128,0.00024655,2]
[327830004,1716526238789,-2938.597128,0.00024655,2]
[327830005,1716526238799,-1221.26160596,0.00024655,2]
[327830006,1716526238811,-1717.33552204,0.00024655,2]
[327830007,1716526238821,-2938.597128,0.00024655,2]
[327830008,1716526238830,-185.894525,0.00024655,2]
[327830009,1716526238840,-185.894525,0.00024655,2]
[327830010,1716526238850,-185.894525,0.00024655,2]
[327830011,1716526238859,-185.894525,0.00024655,2]
[327830012,1716526238869,-151.0,0.00024655,2]
[327830013,1716526238878,-151.0,0.00024655,2]
[327830014,1716526238887,-151.0,0.00024655,2]
[327830015,1716526238897,-151.0,0.00024655,2]
[327830016,1716526238907,-151.0,0.00024655,2]
[327830017,1716526238916,-151.0,0.00024655,2]
[327830018,1716526238927,-151.0,0.00024655,2]
[327830019,1716526238936,-151.0,0.00024655,2]
[327830020,1716526238947,-500.0,0.00024656,2]
[327830021,1716526238956,-500.0,0.00024656,2]
[327830022,1716526238965,-500.0,0.00024656,2]
[327830023,1716526238975,-460.95308221,0.00024656,2]
[327830024,1716526238984,-500.0,0.00024656,2]
[327830025,1716526238996,-500.0,0.00024656,2]
[327830026,1716526239006,-500.0,0.00024656,2]
[327830027,1716526239015,-392.27724796,0.00024656,2]
[327830028,1716526239028,-21.9389751,0.00024656,2]
[327830029,1716526239037,-500.0,0.00024656,2]
[327830030,1716526239047,-500.0,0.00024656,2]
[327830031,1716526239056,-250.0,0.00024656,2]
[327830032,1716526239065,-500.0,0.00024656,2]
[327830033,1716526239074,-500.0,0.00024656,2]
[327830034,1716526239084,-500.0,0.00024656,2]
[327830035,1716526239093,-500.0,0.00024656,2]
[327830036,1716526239102,-500.0,0.00024656,2]
[327830037,1716526239112,-566.09609051,0.00024656,2]
[327830038,1716526239121,-500.0,0.00024656,2]
[327830039,1716526239131,-184.91019683,0.00024656,2]
[327830040,1716526239140,-500.0,0.00024656,2]
[327830041,1716526239149,-500.0,0.00024656,2]
[327830042,1716526239162,-500.0,0.00024656,2]
[327830043,1716526239172,-500.0,0.00024656,2]
[327830044,1716526239182,-1879.28,0.00024656,4]
[327830045,1716526239191,-1879.28,0.00024656,4]
[327830046,1716526239201,-1879.28,0.00024656,4]
[327830047,1716526239211,-1879.28,0.00024656,4]
[327830048,1716526239220,-1879.28,0.00024656,4]
[327830049,1716526239229,-1879.28,0.00024656,4]
[327830050,1716526239245,-1879.28,0.00024656,4]
[327830051,1716526239256,-626.08051737,0.00024656,4]
[327830052,1716526239501,225.22503377,0.000199,2]
[327830057,1716526241505,-200.3880772,0.00024656,2]
[327830058,1716526241517,-282.56795768,0.00024656,2]
[327830059,1716526241526,-1253.19948263,0.00024656,4]
[327830060,1716526241535,-1879.28,0.00024656,4]
[327830061,1716526241545,-992.427765,0.00024656,2]
[327830062,1716526241554,-992.427765,0.00024656,2]
[327830063,1716526241563,-151.0,0.00024656,2]
[327830064,1716526241573,-151.0,0.00024656,2]
[327830065,1716526241583,-151.0,0.00024656,2]
[327830066,1716526241592,-151.0,0.00024656,2]
[327830067,1716526241601,-389.34783766,0.00024656,2]
[327830093,1716526243728,-1518.37501034,0.00024656,2]
[327830094,1716526243738,-1907.722848,0.00024656,2]
[327830095,1716526243748,-1907.722848,0.00024656,2]
[327830096,1716526243757,-1907.722848,0.00024656,2]
[327830097,1716526243766,-151.0,0.00024656,2]
[327830098,1716526243775,-151.0,0.00024656,2]
[327830099,1716526243784,-2938.597128,0.00024656,2]
[327830100,1716526243793,-2938.597128,0.00024656,2]
[327830101,1716526243802,-2938.597128,0.00024656,2]
[327830102,1716526243811,-2938.597128,0.00024656,2]
[327830103,1716526243821,-185.894525,0.00024656,2]
[327830104,1716526243830,-185.894525,0.00024656,2]
[327830105,1716526243839,-185.894525,0.00024656,2]
[327830106,1716526243848,-185.894525,0.00024656,2]
[327830107,1716526243858,-151.0,0.00024656,2]
[327830108,1716526243867,-151.0,0.00024656,2]
[327830109,1716526243876,-151.0,0.00024656,2]
[327830110,1716526243884,-151.0,0.00024656,2]
[327830111,1716526243893,-151.0,0.00024656,2]
[327830112,1716526243903,-151.0,0.00024656,2]
[327830113,1716526243912,-151.0,0.00024656,2]
[327830115,1716526243922,-260.398799,0.00024656,2]
[327830116,1716526243932,-312.110193,0.00024656,2]
[327830118,1716526243942,-312.110193,0.00024656,2]
[327830119,1716526243951,-193.386066,0.00024656,2]
[327830120,1716526243961,-193.386066,0.00024656,2]
[327830121,1716526243970,-496.0,0.00024657,2]
[327830122,1716526243980,-150.859,0.00024657,2]
[327830123,1716526243990,-150.0,0.00024657,2]
[327830124,1716526244001,-156.866,0.00024657,2]
[327830125,1716526244012,-156.866,0.00024657,2]
[327830126,1716526244022,-11555.24628594,0.00024657,11]
[327830127,1716526244033,-2653.32099388,0.00024657,11]
[327830128,1716526244043,-500.0,0.00024657,2]
[327830129,1716526244052,-151.0,0.00024657,2]
[327830130,1716526244062,-500.0,0.00024657,2]
[327830131,1716526244073,-151.0,0.00024657,2]
[327830132,1716526244083,-500.0,0.00024657,2]
[327830133,1716526244093,-500.0,0.00024657,2]
[327830134,1716526244103,-500.0,0.00024657,2]
[327830135,1716526244114,-500.0,0.00024657,2]
[327830136,1716526244124,-500.0,0.00024657,2]
[327830137,1716526244134,-500.0,0.00024657,2]
[327830138,1716526244144,-500.0,0.00024657,2]
[327830139,1716526244154,-500.0,0.00024657,2]
[327830140,1716526244169,-500.0,0.00024657,2]
[327830141,1716526244179,-502.39089655,0.00024657,2]
[327830142,1716526244189,-500.0,0.00024657,2]
[327830143,1716526244201,-503.95524221,0.00024657,2]
[327830144,1716526244212,-504.83,0.00024657,2]
[327830145,1716526244222,-612.56611283,0.00024657,2]
[327830146,1716526244232,-500.0,0.00024657,2]
[327830147,1716526244247,-504.15801548,0.00024657,2]
[327830148,1716526244261,-500.0,0.00024657,2]
[327830149,1716526244271,-500.0,0.00024657,2]
[327830150,1716526244281,-399.3711809,0.00024657,2]
[327830151,1716526244295,-100.6288191,0.00024657,2]
[327830152,1716526244305,-500.0,0.00024657,2]
[327830153,1716526244315,-962.44,0.00024657,2]
[327830154,1716526244326,-505.59807746,0.00024657,2]
[327830155,1716526244337,-2211.34,0.00024657,2]
[327830156,1716526244348,-2818.17,0.00024657,2]
[327830157,1716526244360,-653.03,0.00024657,2]
[327830158,1716526244371,-159.447312,0.00024657,2]
[327830159,1716526244381,-798.13,0.00024657,2]
[327830160,1716526244390,-500.0,0.00024657,2]
[327830161,1716526244400,-1795.29,0.00024657,2]
[327830162,1716526244411,-500.0,0.00024657,2]
[327830163,1716526244421,-500.0,0.00024657,2]
[327830164,1716526244432,-954.37,0.00024657,2]
[327830165,1716526244442,-500.0,0.00024657,2]
[327830166,1716526244452,-570.62,0.00024657,2]
[327830167,1716526244463,-502.78746788,0.00024657,2]
[327830168,1716526244474,-1167.83,0.00024657,2]
[327830169,1716526244485,-500.0,0.00024657,2]
[327830170,1716526244496,-500.0,0.00024657,2]
[327830171,1716526244508,-500.0,0.00024657,2]
[327830172,1716526244518,-500.0,0.00024657,2]
[327830173,1716526244528,-500.0,0.00024657,2]
[327830174,1716526244538,-500.0,0.00024657,2]
[327830175,1716526244549,-500.0,0.00024657,2]
[327830176,1716526244560,-1272.46,0.00024657,2]
[327830177,1716526244571,-500.0,0.00024657,2]
[327830178,1716526244581,-500.0,0.00024657,2]
[327830179,1716526244591,-500.0,0.00024657,2]
[327830180,1716526244601,-896.91,0.00024657,2]
[327830181,1716526244612,-179.1917839,0.00024657,2]
[327830182,1716526244623,-1034.31,0.00024657,2]
[327830183,1716526244633,-500.0,0.00024657,2]
[327830184,1716526244643,-509.03,0.00024657,2]
[327830185,1716526244653,-666.89,0.00024657,2]
[327830186,1716526244664,-500.0,0.00024657,2]
[327830187,1716526244674,-714.32,0.00024657,2]
[327830188,1716526244684,-500.0,0.00024657,2]
[327830189,1716526244695,-1602.84,0.00024657,2]
[327830190,1716526244706,-315.00853951,0.00024657,2]
[327830191,1716526244717,-507.79,0.00024657,2]
[327830192,1716526244727,-151.0,0.00024657,2]
[327830193,1716526244737,-151.0,0.00024657,2]
[327830194,1716526244750,-791.11,0.00024657,2]
[327830195,1716526244758,-298.59,0.00024657,2]